Cogmind - Beta 13 @@@ ROGUE MODE // 2024.06.02 @ 15:52:53 Player: Kat Result: Destroyed by C-17 Slicer with Blade Saw Performance ------------- Evolutions (2) 1000 Regions Visited (4) 800 Robots Destroyed (24) 120 Value Destroyed (535) 535 Prototype IDs (1) 20 Alien Tech Used (0) 0 Bonus (0) 0 TOTAL SCORE: 2475 Bonus ------- None Cogmind --------- Core Integrity 0/550 Matter 300/300 Energy 100/100 System Corruption 9% Temperature Cool (0) Movement Core (50) Location -8/Materials Parts ------- > --- POWER (1) -------- (None) > --- PROPULSION (3) --- (None) > --- UTILITY (4) ------ (None) > --- WEAPON (3) ------- (None) > --- INVENTORY (5) ---- Improved Deuterium Engine Hacking Suite Datajack Peak State ------------ > --- POWER ------------ Improved Deuterium Engine > --- PROPULSION ------- (None) > --- UTILITY ---------- Propulsion Shielding > --- WEAPON ----------- Arc Projector Arc Projector Arc Projector > --- INVENTORY -------- Hover Unit Hacking Suite Arc Projector Advanced Beam Rifle Datajack [Rating: 18] Favorites ----------- Power Ion Engine Engine Ion Engine Propulsion Aluminum Leg Leg Aluminum Leg Hover Unit Hover Unit Flight Unit VTOL Module Utility Small Storage Unit Device Seismic Detector Storage Small Storage Unit Protection Propulsion Shielding Weapon Assault Rifle Energy Gun Arc Projector Ballistic Gun Assault Rifle Ballistic Cannon Light Cannon Launcher Grenade Launcher Build | -11 -10 -10 -9 -8 ------- Run | Yrd Mat Min Mat Mat Slots Evolved 4 | . . . 2 2 Power . | . . . . . Propulsion 1 | . . . 1 . Utility 2 | . . . 1 1 Weapon 1 | . . . . 1 Parts Attached 27 | 7 2 2 6 10 Power 2 | 1 . . . 1 Engine 2 | 1 . . . 1 Core . | . . . . . Reactor . | . . . . . Propulsion 8 | 2 1 . 4 1 Treads . | . . . . . Leg 4 | 2 1 . . 1 Wheel . | . . . . . Hover 3 | . . . 3 . Flight 1 | . . . 1 . Utility 3 | 2 . . . 1 Device 1 | 1 . . . . Storage 1 | 1 . . . . Processor . | . . . . . Hackware . | . . . . . Protection 1 | . . . . 1 Artifact . | . . . . . Weapon 14 | 2 1 2 2 7 Energy Gun 8 | . . . 2 6 Energy Cannon . | . . . . . Ballistic Gun 2 | 2 . . . . Ballistic Cannon 1 | . . 1 . . Launcher 3 | . 1 1 . 1 Special Weapon . | . . . . . Impact Weapon . | . . . . . Slashing Weapon . | . . . . . Piercing Weapon . | . . . . . Special Melee Weapon . | . . . . . Unidentified Prototypes 1 | . . . . 1 Corrupted Parts 1 | . . . . 1 System Corruption 2 | . . . . 2 Parts Lost 12 | . . 1 4 7 Power 2 | . . 1 . 1 Propulsion 1 | . . . 1 . Utility . | . . . . . Weapon 9 | . . . 3 6 Highest Loss Streak 4 | . . 1 3 4 To Critical Strikes . | . . . . . Average Slot Usage (%) 79 | . 100 97 34 32 Engine 10 | . 14 12 . 7 Leg 20 | . 28 28 . 2 Hover 1 | . . . 10 . Device 10 | . 14 14 3 . Storage 10 | . 14 14 3 . Energy Gun 3 | . . . 6 15 Ballistic Gun 8 | . 26 1 . . Ballistic Cannon 5 | . . 12 3 . Launcher 6 | . 1 14 3 . Naked Turns 63 | . . . 31 32 Heaviest Build 23 | 15 16 17 12 23 Greatest Support 20 | 20 20 20 18 10 Greatest Overweight (x) 7 | 2 . . 1 7 Average Overweight (x) . | . . . . . Largest Inventory Capacity 8 | 8 8 8 8 5 Average Capacity 7 | 7 8 8 6 5 Most Carried 8 | . 8 8 8 5 Average Carried 6 | . 6 7 4 3 Final Capacity 8 | 8 8 8 5 5 Final Carried 8 | . 8 7 4 3 Class Distribution -------------------- 95% | Mutant 4% | Tank Dominant Class ---------------- Mutant | -10/Materials Mutant | -10/Mines Mutant | -9/Materials Mutant | -8/Materials Resources | -11 -10 -10 -9 -8 ----------- Run | Yrd Mat Min Mat Mat Matter Collected 665 | 282 73 121 89 100 Remotely . | . . . . . Salvage Created 744 | 29 137 174 130 274 Parts 41 | 2 8 10 10 11 Haulers Intercepted . | . . . . . Recyclers Shooed 4 | . . 2 . 2 Parts Field Recycled . | . . . . . Retrieved Matter . | . . . . . Parts Self-Destructed . | . . . . . Prevented . | . . . . . Kills | -11 -10 -10 -9 -8 ------- Run | Yrd Mat Min Mat Mat Combat Hostiles Destroyed 18 | . 3 5 5 5 Guns 7 | . 3 . 2 2 Cannons 5 | . . 4 1 . AOE 6 | . . 1 2 3 Classes Destroyed 7 | 1 2 3 . 1 Tunneler 2 | 1 . . 1 . Recycler 3 | . . 1 . 2 Operator 1 | . 1 . . . Swarmer 9 | . . 3 3 3 Grunt 5 | . 3 . 1 1 Brawler 1 | . . . . 1 Sentry 3 | . . 2 1 . Best Kill Streak 4 | 1 2 3 3 4 Combat Bots Only 3 | . 2 3 3 3 Max Kills in Single Turn 4 | 1 1 2 1 4 Gunslinging . | . . . . . Exploded 3 | . . 1 1 3 Melee . | . . . . . Uniques/NPCs Destroyed . | . . . . . Combat | -11 -10 -10 -9 -8 -------- Run | Yrd Mat Min Mat Mat Hostile Shots Fired 203 | . 29 30 80 64 Missed 69 | . 12 5 34 18 Damage Taken 2086 | . 199 252 508 1127 Core 870 | . 36 65 213 556 Absorbed by Shields . | . . . . . Redirected to Shielding 2 | . . . . 2 Core Remaining (%) 68 | 100 . 59 46 . Volleys Fired 60 | 2 14 15 15 14 Largest 3 | 2 2 2 2 3 Hottest 165 | 40 40 65 90 165 Shots Fired 102 | 4 25 18 23 32 Gun 72 | 4 25 . 12 31 Cannon 22 | . . 15 7 . Launcher 8 | . . 3 4 1 Special . | . . . . . Kinetic 51 | 4 25 15 7 . Thermal 8 | . . . . 8 Explosive 7 | . . 3 4 . Electromagnetic 36 | . . . 12 24 Robot Hit Streak 8 | 2 7 8 3 4 Robot Miss Streak 5 | 2 4 3 5 3 Penetration Max . | . . . . . Secondary Targets . | . . . . . Shots Hit Robots 50 | 2 17 9 9 13 Core Hits 35 | 1 8 11 7 8 Critical Kills . | . . . . . Critical Parts Destroyed 1 | . 1 . . . Critical Strikes 1 | . 1 . . . Destroy 1 | . 1 . . . Melee Attacks . | . . . . . Impact . | . . . . . Slashing . | . . . . . Piercing . | . . . . . Sneak Attacks . | . . . . . Combat Hostiles . | . . . . . Follow-up Attacks . | . . . . . Damage Inflicted 1293 | 27 219 227 241 579 Guns 501 | 27 210 . 61 203 Cannons 190 | . . 141 49 . Explosions 581 | . . 74 131 376 Melee . | . . . . . Ramming 21 | . 9 12 . . Kinetic 427 | 27 210 141 49 . Thermal 414 | . . . . 414 Explosive 205 | . . 74 131 . Electromagnetic 226 | . . . 61 165 Impact . | . . . . . Slashing . | . . . . . Piercing . | . . . . . Highest Corruption 9 | . . . . 9 Average Corruption 8 | . . . . 8 Corruption Purged . | . . . . . Corruption Blocked . | . . . . . Effects 5 | . . . . 5 Message Errors 3 | . . . . 3 Energy Discharges 1 | . . . . 1 Data Loss (minor) 1 | . . . . 1 Overload Shots . | . . . . . Overflow Damage 134 | . . . . 134 Projectiles . | . . . . . Explosions 134 | . . . . 134 Melee . | . . . . . Knockbacks 2 | . . 2 . . Impact . | . . . . . Kinetic 1 | . . 1 . . Secondary 1 | . . 1 . . Self-Inflicted Damage 215 | . . . 28 187 Shots 4 | . . . 1 3 Rammed . | . . . . . Targets Rammed 4 | . 1 3 . . Kicked 4 | . 1 3 . . Crushed . | . . . . . Highest Temperature 468 | . 2 58 12 468 Average Temperature 152 | . 2 41 5 212 Received Heat Transfer 393 | . 93 72 102 126 Effects 2 | . . . . 2 Shutdowns 1 | . . . . 1 Energy Bleed 1 | . . . . 1 Siege Activations . | . . . . . Robots Corrupted . | . . . . . Combat Hostiles . | . . . . . Parts Fried . | . . . . . Impact Corruptions . | . . . . . Robots Melted . | . . . . . Combat Hostiles . | . . . . . Parts Melted . | . . . . . Heat Transferred 385 | . . . . 385 Parts Sabotaged . | . . . . . Parts Stolen . | . . . . . Parts Stripped . | . . . . . Power Chain Reactions . | . . . . . Alert | -11 -10 -10 -9 -8 ------- Run | Yrd Mat Min Mat Mat Peak Influence 279 | 5 121 121 209 279 Initial 83 | . 3 46 22 83 Average 79 | 1 39 85 121 126 Maximum Alert Level 1 | . . . 1 1 Low Security (%) 96 | 100 100 100 95 80 Level 1 3 | . . . 4 19 Level 2 . | . . . . . Level 3 . | . . . . . Level 4 . | . . . . . Level 5 . | . . . . . High Security . | . . . . . Max Security . | . . . . . Squads Dispatched 5 | . 2 . 2 1 Investigation 2 | . 1 . 1 . Extermination . | . . . . . Reinforcement 3 | . 1 . 1 1 Assault . | . . . . . Garrison . | . . . . . Intercept . | . . . . . Searches Triggered . | . . . . . Construction Impeded . | . . . . . Haulers Reinforced . | . . . . . Active Scanning Responses . | . . . . . Cargo Convoy Interrupts . | . . . . . Stealth | -11 -10 -10 -9 -8 --------- Run | Yrd Mat Min Mat Mat Distress Signals 3 | . . 1 . 2 Communications Jammed . | . . . . . Distress Signals . | . . . . . Times Spotted 55 | . 10 5 19 21 Peak Tracking Total 13 | . 5 2 13 10 Tactical Retreats 2 | . . . . 2 Traps | -11 -10 -10 -9 -8 ------- Run | Yrd Mat Min Mat Mat Traps Triggered . | . . . . . Indirectly . | . . . . . Trap Hack Attempts . | . . . . . Triggered . | . . . . . Disarmed . | . . . . . Reprogrammed . | . . . . . Reused . | . . . . . Traps Extracted . | . . . . . Installed . | . . . . . Triggered . | . . . . . Machines | -11 -10 -10 -9 -8 ---------- Run | Yrd Mat Min Mat Mat Machines Disabled 5 | . . 2 1 2 Max in Single Turn 2 | . . 2 1 2 Machines Repaired . | . . . . . Machines Dismantled . | . . . . . Machines Sabotaged . | . . . . . Overloaded Fab Kills . | . . . . . Hacking | -11 -10 -10 -9 -8 --------- Run | Yrd Mat Min Mat Mat Machines Accessed 3 | . 2 . 1 . Terminals 3 | . 2 . 1 . Fabricators . | . . . . . Repair Stations . | . . . . . Recycling Units . | . . . . . Scanalyzers . | . . . . . Garrison Access . | . . . . . Total Hacks 8 | . 6 . 2 . Successful 3 | . 3 . . . Failed 5 | . 3 . 2 . Catastrophic 2 | . . . 2 . Database Lockouts . | . . . . . Manual 3 | . 1 . 2 . Terminals 8 | . 6 . 2 . Fabricators . | . . . . . Repair Stations . | . . . . . Recycling Units . | . . . . . Scanalyzers . | . . . . . Garrison Access . | . . . . . Terminal Hacks 3 | . 3 . . . Emergency Access Points 1 | . 1 . . . Surveillance Status 1 | . 1 . . . Zone Layout 1 | . 1 . . . Fabricator Hacks . | . . . . . Repair Station Hacks . | . . . . . Recycling Unit Hacks . | . . . . . Scanalyzer . | . . . . . Garrison Access Hacks . | . . . . . Unauthorized Hacks . | . . . . . Terminals . | . . . . . Fabricators . | . . . . . Repair Stations . | . . . . . Recycling Units . | . . . . . Scanalyzers . | . . . . . Garrison Access . | . . . . . Data Cores Recovered . | . . . . . Used . | . . . . . Hacking Detections 2 | . 1 . 1 . Full Trace Events 2 | . 1 . 1 . Feedback Events . | . . . . . Feedback Blocked . | . . . . . Robot Schematics Acquired . | . . . . . Robots Built . | . . . . . Authchips . | . . . . . Time . | . . . . . Total Robot Build Rating . | . . . . . Part Schematics Acquired . | . . . . . Parts Built . | . . . . . Authchips . | . . . . . Time . | . . . . . Total Part Build Rating . | . . . . . Parts Repaired . | . . . . . Time . | . . . . . Parts Recycled . | . . . . . Recycled Matter . | . . . . . Retrieved Matter . | . . . . . Retrieved Components . | . . . . . Parts Scanalyzed . | . . . . . Part Schematics Acquired . | . . . . . Parts Damaged . | . . . . . Bothacking | -11 -10 -10 -9 -8 ------------ Run | Yrd Mat Min Mat Mat Used RIF Installer . | . . . . . Robots Hacked . | . . . . . Non-combat . | . . . . . Combat . | . . . . . Robot Hacks Applied . | . . . . . Relay Couplers Released . | . . . . . Fabnet Peak Effective % . | . . . . . Robots Rewired . | . . . . . Allies Hacked . | . . . . . Hacks Repelled . | . . . . . Allies | -11 -10 -10 -9 -8 -------- Run | Yrd Mat Min Mat Mat Total Allies . | . . . . . Largest Group . | . . . . . Highest-Rated Group . | . . . . . Highest-Rated Ally . | . . . . . Total Orders . | . . . . . Ally Attacks . | . . . . . Total Damage . | . . . . . Kills . | . . . . . Allies Corrupted . | . . . . . Allies Melted . | . . . . . Intel | -11 -10 -10 -9 -8 ------- Run | Yrd Mat Min Mat Mat Robot Analysis Total . | . . . . . Derelict Logs Recovered 1 | . . 1 . . Drone Launches . | . . . . . Drone Recoveries . | . . . . . Exploration | -11 -10 -10 -9 -8 ------------- Run | Yrd Mat Min Mat Mat Turns Passed 1276 | 64 342 521 166 183 Spaces Moved 980 | 42 233 401 193 111 Core 143 | 5 . . 76 62 Treads . | . . . . . Legs 690 | 37 233 401 . 19 Wheels . | . . . . . Hover 45 | . . . 45 . Flight 102 | . . . 72 30 Fastest Speed 35 | 50 120 120 35 35 Average Speed 103 | 114 120 120 47 104 Slowest Speed 400 | 150 120 120 100 400 Overloaded Moves . | . . . . . Propulsion Burnouts . | . . . . . Robots Hopped . | . . . . . Cave-ins Triggered . | . . . . . Exploration Rate (%) 33 | 3 34 82 35 12 Regions Visited 4 Branch Regions 1 Pre-discovered Areas . | . . . . . Known Exits Taken . | . . . . . Unknown Exits Taken 4 | 1 1 1 1 . Scrap Searched 1 | . . 1 . . Spaces Dug . | . . . . . Terrain Destroyed 104 | . . 29 20 55 Melee . | . . . . . Projectile . | . . . . . AOE 104 | . . 29 20 55 Terrain Rammed . | . . . . . Walls Destroyed . | . . . . . Machines Disabled . | . . . . . Actions | -11 -10 -10 -9 -8 --------- Run | Yrd Mat Min Mat Mat Total 1134 | 50 271 422 243 148 Wait 40 | . 9 . 25 6 Move 976 | 41 232 400 192 111 Hop . | . . . . . Pick Up 14 | . 10 . 1 3 Fast Attach 16 | 7 . 1 2 6 Attach 9 | . 1 . 4 4 Detach 3 | . . . 1 2 Swap 2 | . 1 1 . . Drop 10 | . 3 2 3 2 Fire 60 | 2 14 15 15 14 Melee . | . . . . . Ram . | . . . . . Kick 4 | . 1 3 . . Crush . | . . . . . Escape Stasis . | . . . . . Rewire . | . . . . . Trap . | . . . . . Miscellaneous . | . . . . . Route ------- -11/Scrapyard -10/Materials -10/Mines (discovered 2 exits: *Mat x2) -9/Materials (discovered 2 exits: [*Mat] / [*Min]) -8/Materials History --------- Turn | Location | Event 13 | -11/Scrapyard | Discovered new exit (range 15) 65 | -11/Scrapyard | Entered Materials 308 | -10/Materials | Build established: Mutant 329 | -10/Materials | Discovered new exit (range 16) 407 | -10/Materials | Entered Mines 419 | -10/Mines | Learned Materials emergency access door positions 586 | -10/Mines | Discovered new exit (range 7) 749 | -10/Mines | Discovered new exit (range 6) 928 | -10/Mines | Entered Materials 928 | -9/Materials | Evolved 2 slots: Propulsion x1, Utility x1 952 | -9/Materials | Discovered new exit (range 15) 988 | -9/Materials | Released all parts (4) 1019 | -9/Materials | Lost 3 parts (1n2w) 1071 | -9/Materials | Discovered new exit (range 16) 1081 | -9/Materials | Core integrity fell below 50% 1094 | -9/Materials | Entered another Materials area 1094 | -8/Materials | Evolved 2 slots: Utility x1, Weapon x1 1196 | -8/Materials | Lost 3 parts (3w) 1245 | -8/Materials | Released all parts (2) 1250 | -8/Materials | Core integrity fell below 50% 1261 | -8/Materials | Core integrity fell below 20% 1276 | -8/Materials | Lost 4 parts (1p3w) 1277 | -8/Materials | Destroyed by C-17 Slicer with Blade Saw Last Messages --------------- 01242_ Imp. Deuterium Engine destroyed. 01242_ Destroyed Imp. Deuterium Engine. 01242_ Fusion Modulator explodes. 01242_ Destroyed Lgt. Ion Engine. 01242_ Destroyed Com. Wheel. 01242_ R-06 Scavenger destroyed. 01242_ Destroyed Flight Unit. 01242_ S-10 Pest destroyed. 01243_ Slug penetrates Wall. 01244_ Adv. Beam Rifle destroyed. 01244_ Knocked back. 01245_ Arc Projector destroyed. 01245_ Knocked back. 01245_ Released Aluminum Leg. 01245_ Released Propulsion Shielding. 01246_ Knocked back. 01249_ Penetrated by Slug. 01249_ Knocked back. 01261_ K-01 Serf collects debris. 01263_ R1TTW9SREQXHTN28XIFOJ4ZIMCA4%AW& Map ----- +----------------------------------------------------+ | ?????????????????????????????????????????????????? | | ?????????????????????????????????????????????????? | | ?????????????????????????????????????????????????? | | ?????????????????????????????????????????????????? | | ?????????????????????????????????????????????????? | | ?????????????????????????????????????????????????? | | ???????????????????????????????????? ???????????? | | ???????????????????????????????????? ? ???????? | | ??????????????????????????????????## "???????? | | ?????????????????????????????????? "T" ???? | | ?????????????????????????????????? ???? | | ?????????????????????????????????? ????? | | ?????????????????????????????????? ?????? | | ?????????????????????????????????? ??????? | | ?????????????????????????????????? ???????? | | ?????????????????????????????????? ????????? | | ?????????????????????????????????? #?????????? | | ??????????????????????????????????# #?????????? | | ??????????????????????????????????# #?????????? | | ????????????????????????########### #?????????? | | ????????????????????????# / #?????????? | | ????????????????????????# # #?????????? | | ????????????????????????# """"""" # #?????????? | | ????????????????????????#s""""""" # #?????????? | | ????????????????????????#c""""""" # #?????????? | | ???????????????? ???????#@""""""" # #?????????? | | ???????????????? ???????#c""""""" # #?????????? | | ???????????????# ???????# ss # #?????????? | | ??????????????## ???????########### #?????????? | | ????????#?????? ?????????????????# #?????????? | | ????????# ????? ?????????????????# #######???? | | ????????? ????# ######???????????# #???? | | ?????????# ???## # # ###???####### #???? | | ?????????# ?##" " ##### % #???? | | ?????????# ##" """""#!! ####+##### #???? | | ?????????# "" ""!! % # # #???? | | ????????## "" "#* + """" # #???? | | ???###+## " "#* ### """" # #???? | | ???# =="! "" #?# """" #####???? | | ???# /%=H [ "" % #?# #???????? | | ????????# % %"#"### #?# """" #???????? | | ????????#### ! ""#### #?# """" #???????? | | ???????????# = + % #?# """" !#???????? | | ???????????# #####"#"##?# #???????? | | ???????????## #???#####??##########???????? | | ????????????# ##???????????????????????????? | | ????????????### #????????????????????????????? | | | | | | | +----------------------------------------------------+ Best States ------------- Heat Dissipation 31 Energy Generation 16 Energy Capacity 290 Matter Stores 300 Matter Capacity 300 Sight Range 16 Terrain Scan Density 10 Propulsion Shielding 33 Evasion (%) 63 Item Schematics ----------------- None Robot Schematics ------------------ None Fabricated ------------ Nothing Alien Tech Used ----------------- None Achievements -------------- None Challenges ------------ None Game ------ Seed AngularImprinterWarhead Manual? 0 Play Time 00:18:55 Cumulative 10.4 hours Start 2024.06.02 @ 14:08:44 End 2024.06.02 @ 15:52:53 Sessions 3 Manual Loads 0 Difficulty Rogue Special Mode None Game No. 23 Rogue 23 Adventurer 0 Explorer 0 Win Type - Total 0 Types 0/0/0/0/0/0/0/0/0 Lore% 9 Gallery% 15 Achievement% 11 Wizard Run 0 Options --------- Layout 1 ASCII 0 Keyboard 0 Movement Mouse Keybinds 0 Fullscreen 2 Font 24/Terminus Map View 50x35 Zoom Use 0% Tactical HUD 1 Map Filters NONE Filters NONE Steam 1 RUN: 6188eca0-ca51-4a35-b5bc-5b8542a9baa2